bitfinex/quotes_SOLUSD_20250920
["timestamp","ask_amount","ask_price","bid_price","bid_amount"]
[1758381753515,0.1,241.21,241.2,5.54336083]
[1758381753821,4.24583152,241.21,241.2,5.54336083]
[1758381754123,0.1,241.21,241.2,5.54336083]
[1758381754324,0.1,241.21,241.2,39.40336083]
[1758381754632,0.1,241.21,241.15,35.3466688]
[1758381754924,0.1,241.21,241.17,0.66]
[1758381755109,0.1,241.21,241.2,5.54336083]
[1758381756319,0.1,241.21,241.2,38.70336083]
[1758381756814,0.1,241.21,241.2,39.36336083]
[1758381757126,0.1,241.21,241.2,43.50929781]
[1758381757628,0.1,241.21,241.2,38.70336083]
[1758381757819,0.1,241.21,241.2,33.16]
[1758381758002,0.1,241.21,241.2,38.70336083]
[1758381758203,0.1,241.21,241.2,74.70929781]
[1758381758411,0.1,241.21,241.2,74.76929781]
[1758381758812,0.1,241.21,241.2,69.20593698]
[1758381759013,0.1,241.21,241.2,41.54929781]
[1758381759428,0.1,241.21,241.2,74.74929781]
[1758381759631,0.1,241.21,241.2,41.54929781]
[1758381759926,0.1,241.21,241.2,74.74929781]
[1758381760113,0.1,241.21,241.2,74.72929781]
[1758381760618,0.1,241.21,241.17,0.66]
[1758381760819,0.67,241.2,241.13,0.66]
[1758381761010,0.67,241.2,241.09,12.7596748]
[1758381761011,0.67,241.2,241.14,33.22]
[1758381761216,0.67,241.19,241.14,33.22]
[1758381761411,0.67,241.18,241.13,5.54336083]
[1758381761708,0.67,241.18,241.11,44.79559401]
[1758381761709,0.67,241.17,241.12,5.54336083]
[1758381761910,0.1,241.21,241.15,5.54336083]
[1758381762123,0.1,241.21,241.2,5.54336083]
[1758381762429,0.1,241.21,241.2,38.76336083]
[1758381762928,0.1,241.21,241.2,39.42336083]
[1758381763146,0.1,241.21,241.2,33.24]
[1758381763441,0.1,241.21,241.2,38.78336083]
[1758381763737,0.1,241.21,241.2,39.44336083]
[1758381764046,0.1,241.21,241.2,43.58929781]
[1758381764512,0.1,241.21,241.2,43.56929781]
[1758381764828,0.1,241.21,241.2,10.34929781]
[1758381765134,0.1,241.21,241.2,43.56929781]
[1758381765326,0.1,241.21,241.2,43.54929781]
[1758381766142,0.1,241.21,241.2,38.74336083]
[1758381766628,0.1,241.21,241.2,33.2]
[1758381766811,0.1,241.21,241.2,38.72336083]
[1758381768543,0.1,241.21,241.2,5.54336083]
[1758381768720,0.1,241.21,241.2,38.72336083]
[1758381769827,0.1,241.21,241.2,5.54336083]
[1758381770549,0.77,241.21,241.19,5.54336083]
[1758381770843,0.77,241.21,241.2,33.14]
[1758381770844,0.1,241.21,241.2,33.14]
[1758381771228,0.1,241.21,241.2,0.66]
[1758381771423,0.1,241.21,241.2,33.8]
[1758381771650,0.1,241.21,241.2,47.39559401]
[1758381772525,0.1,241.21,241.2,51.52153099]
[1758381773037,0.1,241.21,241.2,18.40153099]
[1758381773227,0.1,241.21,241.2,51.52153099]
[1758381773646,0.1,241.21,241.2,23.94489182]
[1758381773849,0.1,241.21,241.2,57.06489182]
[1758381774351,0.1,241.21,241.2,23.94489182]
[1758381774724,0.1,241.21,241.2,33.1]
[1758381774938,0.1,241.21,241.2,38.64336083]
[1758381775341,0.1,241.21,241.2,5.54336083]
[1758381775540,0.1,241.21,241.2,38.62336083]
[1758381777254,0.1,241.21,241.2,43.42929781]
[1758381777754,0.1,241.21,241.2,39.4732562]
[1758381777963,0.1,241.21,241.2,35.32731922]
[1758381778656,0.1,241.21,241.2,39.4732562]
[1758381779049,0.1,241.21,241.2,40.1332562]
[1758381779360,0.1,241.21,241.2,40.1132562]
[1758381779759,0.1,241.21,241.2,53.70885021]
[1758381780863,0.1,241.22,241.21,13.59559401]
[1758381781032,0.1,241.27,241.21,47.29559401]
[1758381781352,0.1,241.27,241.26,2.24731922]
[1758381781534,0.1,241.27,241.26,35.28731922]
[1758381781729,0.1,241.27,241.26,39.43222513]
[1758381782460,0.1,241.27,241.26,39.41222513]
[1758381782648,0.1,241.27,241.26,40.09222513]
[1758381782971,0.1,241.27,241.26,39.41222513]
[1758381784350,0.1,241.27,241.25,4.14507772]
[1758381784667,0.1,241.27,241.26,35.24731922]
[1758381786283,0.1,241.27,241.26,2.24731922]
[1758381786487,0.1,241.27,241.26,35.22731922]
[1758381787058,0.1,241.27,241.26,32.96]
[1758381787253,0.1,241.27,241.26,35.20731922]
[1758381787745,0.1,241.27,241.26,2.24731922]
[1758381788079,0.76,241.27,241.23,2.24731922]
[1758381788370,0.66,241.26,241.25,2.24731922]
[1758381788861,0.1,241.27,241.25,35.18731922]
[1758381789257,0.1,241.27,241.17,31.2]
[1758381789258,0.66,241.26,241.18,0.68]
[1758381789562,0.76,241.27,241.19,33.62]
[1758381789866,0.76,241.27,241.25,2.24731922]
[1758381790069,0.76,241.27,241.26,32.94]
[1758381790366,0.76,241.27,241.26,35.20731922]
[1758381790555,0.76,241.27,241.26,2.24731922]
[1758381790760,4.90473411,241.27,241.26,2.24731922]
[1758381790960,4.90473411,241.27,241.26,35.20731922]
[1758381791363,4.90473411,241.27,241.26,2.24731922]
[1758381791571,4.90473411,241.27,241.2,4.82579462]
[1758381791759,4.90473411,241.27,241.26,1.4380541]
[1758381791966,4.90473411,241.27,241.2,0.68]
[1758381792162,4.90473411,241.27,241.25,1.4380541]
[1758381792467,0.76,241.27,241.26,32.94]
[1758381792870,4.90476534,241.27,241.25,1.4380541]
[1758381793056,0.76,241.27,241.26,32.94]
[1758381793659,4.90473411,241.27,241.26,32.94]
[1758381795282,4.90473411,241.27,241.24,1.4380541]
[1758381795582,0.66,241.26,241.25,32.9]
[1758381796254,0.1,241.27,241.24,1.4380541]
[1758381796453,0.66,241.26,241.24,1.4380541]
[1758381796664,0.66,241.26,241.25,32.92]
[1758381797063,0.1,241.27,241.24,1.4380541]
[1758381797276,4.24474877,241.27,241.25,32.92]
[1758381797478,0.1,241.27,241.26,32.92]
[1758381797673,0.1,241.27,241.26,34.3580541]
[1758381798582,0.1,241.27,241.26,1.4380541]
[1758381798882,0.1,241.27,241.26,34.3580541]
[1758381799464,0.1,241.27,241.26,1.4380541]
[1758381799667,0.1,241.27,241.26,34.3580541]
[1758381799984,0.1,241.27,241.26,32.92]
[1758381800278,4.90474576,241.27,241.26,32.9]
[1758381800590,0.1,241.27,241.24,1.4380541]
[1758381800774,0.1,241.27,241.25,32.9]
[1758381800969,0.1,241.27,241.24,1.4380541]
[1758381801158,0.1,241.27,241.26,32.9]
[1758381801353,4.24473411,241.27,241.26,32.9]
[1758381801973,0.1,241.27,241.26,32.9]
[1758381802884,4.24473634,241.27,241.26,32.88]
[1758381804282,0.1,241.27,241.26,32.88]
[1758381805282,0.1,241.27,241.26,32.84]
[1758381806188,4.24473411,241.27,241.26,32.84]
[1758381806491,4.96473411,241.27,241.26,32.84]
[1758381806692,4.24473411,241.27,241.24,1.4380541]
[1758381806865,4.96473411,241.27,241.25,32.82]
[1758381807171,4.96473411,241.27,241.26,32.82]
[1758381808267,4.24473411,241.27,241.26,32.82]
[1758381809093,4.24473411,241.27,241.23,2.1580541]
[1758381809094,4.24473411,241.27,241.23,1.4380541]
[1758381809261,4.96473411,241.27,241.23,1.4380541]
[1758381809463,4.96473411,241.27,241.24,32.8]
[1758381809660,4.24473411,241.27,241.24,33.52]
[1758381809884,4.24473411,241.27,241.25,32.8]
[1758381810071,4.24473411,241.27,241.26,32.8]
[1758381810786,4.24473411,241.27,241.26,32.78]
[1758381811199,4.96473411,241.27,241.26,32.78]
[1758381811905,15.32656939,241.27,241.13,10.36765437]
[1758381812080,1.4380541,241.23,241.13,0.72]
[1758381812267,1.4380541,241.23,241.14,32.78]
[1758381812268,2.1580541,241.22,241.14,32.78]
[1758381812462,2.79395231,241.23,241.15,32.78]
[1758381812463,1.4380541,241.2,241.15,32.78]
[1758381812695,1.4380541,241.16,241.09,12.47626955]
[1758381812870,0.72,241.15,241.1,32.8]
[1758381813072,0.72,241.14,241.1,32.8]
[1758381813396,0.72,241.14,241.11,32.8]
[1758381813577,0.72,241.14,241.08,19.04506503]
[1758381813895,4.14679659,241.15,241.09,32.8]
[1758381814589,4.14679659,241.15,241.09,34.2380541]
[1758381814989,0.72,241.14,241.09,32.8]
[1758381815174,0.72,241.13,241.09,32.8]
[1758381815897,0.72,241.12,241.09,32.8]
[1758381816063,4.86738744,241.12,241.09,32.8]
[1758381816487,0.72,241.11,241.09,32.8]
[1758381816678,0.72,241.11,241.1,32.76]
[1758381816877,4.14738744,241.12,241.1,32.76]
[1758381817289,0.72,241.11,241.1,32.76]
[1758381817783,0.72,241.11,241.05,1.4380541]
[1758381817973,4.14765657,241.1,241.06,32.78]
[1758381818172,4.86765657,241.1,241.06,32.78]
[1758381818472,0.72,241.09,241.06,32.78]
[1758381818896,0.72,241.11,241.06,32.78]
[1758381819594,0.72,241.1,241.06,46.44894632]
[1758381819998,0.72,241.09,241.06,12.23089222]
[1758381820170,0.72,241.08,241.06,32.74]
[1758381820592,15.95378101,241.12,241.06,32.74]
[1758381820593,0.72,241.07,241.06,32.74]
[1758381821091,0.72,241.09,241.06,32.74]
[1758381821298,1.4380541,241.11,241.06,32.74]
[1758381821489,0.72,241.1,241.06,32.74]
[1758381821689,1.4380541,241.11,241.06,32.74]
[1758381821690,0.72,241.09,241.06,32.74]
[1758381821891,16.67378101,241.12,241.06,32.74]
[1758381822083,16.67378101,241.12,241.06,33.46]
[1758381822268,16.67378101,241.12,241.06,32.74]
[1758381822603,4.14765657,241.1,241.06,32.74]
[1758381822892,0.72,241.09,241.06,32.74]
[1758381823301,0.72,241.09,241.04,0.72]
[1758381823499,0.72,241.08,241.04,45.22217307]
[1758381823804,15.9548521,241.1,241.04,32.74]
[1758381824008,0.72,241.08,241.04,32.74]
[1758381824576,4.86808147,241.08,241.02,0.72]
[1758381824802,4.86808147,241.08,241.03,32.7]
[1758381825000,4.86808147,241.08,241.03,33.42]
[1758381825797,4.14808147,241.08,241.02,4.14901956]
[1758381826006,4.14808147,241.08,241.04,0.72]
[1758381826177,0.72,241.07,241.01,0.1]
[1758381826378,1.4380541,241.04,241.01,0.1]
[1758381826584,31.2,241.05,241.01,0.1]
[1758381826585,4.86886113,241.03,241.01,0.1]
[1758381828798,41.57162488,241.05,241.01,0.1]
[1758381828983,31.2,241.05,241.02,0.72]
[1758381829379,5.58622682,241.07,241.01,0.1]
[1758381829579,0.72,241.05,241.01,0.1]
[1758381829788,0.72,241.04,241.01,0.1]
[1758381830283,14.51860454,241.07,241.01,0.1]
[1758381830284,0.72,241.03,241.01,0.1]
[1758381830699,0.72,241.02,241.01,0.1]
[1758381830890,4.86903327,241.02,241.01,0.1]
[1758381832807,6.30708737,241.02,241.01,0.1]
[1758381833398,4.14903327,241.02,241.01,0.1]
[1758381834189,4.86903327,241.02,241.01,0.1]
[1758381841706,4.86903327,241.02,241.01,1e-08]
[1758381841707,18.46462728,241.02,241.01,1e-08]
[1758381842008,52.86869384,241.02,241.01,1e-08]
[1758381843015,0.67,241.08,241.01,0.69000001]
[1758381843314,1.4380541,241.06,241.01,0.69000001]
[1758381843521,31.2,241.04,241.01,0.69000001]
[1758381844291,4.14886113,241.03,241.02,0.7]
[1758381845738,4.14886113,241.03,241.01,1e-08]
[1758381845891,4.14886113,241.03,241.01,0.70000001]
[1758381847414,4.14886113,241.03,241.01,1e-08]
[1758381847912,4.14886113,241.03,241.02,0.7]
[1758381851102,4.14886113,241.03,241.01,1e-08]
[1758381851302,4.14886113,241.03,241.01,0.70000001]
[1758381852313,4.14886113,241.03,241.01,1e-08]
[1758381853800,6.4015881,241.03,241.01,1e-08]
[1758381854402,4.14886113,241.03,241.01,1e-08]
[1758381854601,6.4015881,241.03,241.01,1e-08]
[1758381855293,4.14886113,241.03,241.01,1e-08]
[1758381855495,4.14886113,241.03,241.02,9.650638]
[1758381855810,4.14886113,241.03,241.02,8.950638]
[1758381858322,6.93058872,241.03,241.02,8.950638]
[1758381858513,35.34886113,241.03,241.02,9.650638]
[1758381859537,38.1317466,241.03,241.02,9.650638]
[1758381860817,6.9317466,241.03,241.02,9.650638]
[1758381861032,35.34886113,241.03,241.02,9.650638]
[1758381861202,38.1317466,241.03,241.02,9.650638]
[1758381861630,35.34886113,241.03,241.02,9.650638]
[1758381861809,38.1343102,241.03,241.02,9.650638]
[1758381863011,40.38703717,241.03,241.02,8.950638]
[1758381863328,38.1343102,241.03,241.02,8.950638]
[1758381863512,40.38703717,241.03,241.02,8.950638]
[1758381864699,38.1343102,241.03,241.02,8.950638]
[1758381865019,40.38703717,241.03,241.02,8.950638]
[1758381868124,40.38703717,241.03,241.01,1e-08]
[1758381868125,41.05703717,241.03,241.01,1e-08]
[1758381868329,33.98544907,241.02,241.01,1e-08]
[1758381868511,66.70544907,241.02,241.01,1e-08]
[1758381868716,67.37544907,241.02,241.01,1e-08]
[1758381868918,71.52448234,241.02,241.01,1e-08]
[1758381869232,38.80448234,241.02,241.01,1e-08]
[1758381869426,40.38720931,241.02,241.01,1e-08]
[1758381869808,38.13448234,241.02,241.01,0.68000001]
[1758381873131,2.78544907,241.02,241.01,0.68000001]
[1758381873633,6.93415114,241.04,241.01,0.68000001]
[1758381873841,2.78544907,241.03,241.01,0.68000001]
[1758381874835,2.78544907,241.05,241.02,2.25272697]
[1758381875042,6.94699614,241.1,241.04,2.25272697]
[1758381875230,2.79933957,241.09,241.06,2.25272697]
[1758381875535,6.94397436,241.13,241.07,0.68]
[1758381877822,43.82036813,241.14,241.07,4.82814421]
[1758381877823,4.14699394,241.14,241.07,4.82814421]
[1758381878030,4.14699394,241.14,241.1,2.25272697]
[1758381878237,4.14699394,241.14,241.11,0.68]
[1758381878617,4.14679659,241.15,241.12,0.68]
[1758381879951,4.14679659,241.15,241.1,0.68]
[1758381880257,4.14679659,241.15,241.11,0.68]
[1758381884349,4.14662464,241.16,241.11,0.68]
[1758381884527,4.81662464,241.16,241.11,0.68]
[1758381885445,4.81662464,241.16,241.12,0.68]
[1758381885749,4.81662464,241.16,241.1,2.93272697]
[1758381886730,4.14662464,241.16,241.11,0.68]
[1758381886931,4.14662464,241.16,241.12,0.68]
[1758381887136,4.81662464,241.16,241.12,0.68]
[1758381887336,4.81662464,241.16,241.1,2.93272697]
[1758381887843,4.81662464,241.16,241.1,2.25272697]
[1758381888056,4.81662464,241.16,241.11,0.68]
[1758381888560,4.81662464,241.16,241.12,0.68]
[1758381888762,4.81662464,241.16,241.06,32.72]
[1758381888763,0.67,241.15,241.06,0.68]
[1758381889054,2.25272697,241.1,241.04,0.68]
[1758381890358,4.14765657,241.1,241.04,0.68]
[1758381890959,4.14765657,241.1,241.05,2.25272697]
[1758381891158,4.14765657,241.1,241.06,0.68]
[1758381891460,6.40038354,241.1,241.06,0.68]
[1758381892034,10.36912092,241.11,241.07,0.68]
[1758381892235,12.62184789,241.11,241.07,0.68]
[1758381892430,12.62184789,241.11,241.04,2.25272697]
[1758381892431,2.25272697,241.08,241.04,0.68]
[1758381892644,2.25272697,241.07,241.01,0.68000001]
[1758381892954,2.25272697,241.09,241.02,2.25272697]
[1758381893136,10.36912092,241.11,241.04,2.25272697]
[1758381893340,2.25272697,241.1,241.05,0.68]
[1758381893648,0.67,241.1,241.05,0.68]
[1758381893845,4.14782861,241.09,241.05,0.68]
[1758381894049,4.14782861,241.09,241.06,0.68]
[1758381894356,4.14782861,241.09,241.07,0.68]
[1758381895452,14.51660547,241.11,241.07,0.68]
[1758381895844,16.76933244,241.11,241.05,0.68]
[1758381896058,2.25272697,241.09,241.02,2.91272697]
[1758381896252,0.71,241.08,241.02,35.61272697]
[1758381896562,0.71,241.08,241.02,0.66]
[1758381896764,2.96272697,241.08,241.02,0.66]
[1758381897260,4.14817272,241.07,241.02,0.66]
[1758381897569,4.14817272,241.07,241.03,2.25272697]
[1758381897871,4.14817272,241.07,241.03,0.66]
[1758381898254,4.14817272,241.07,241.04,0.66]
[1758381899179,4.14703145,241.14,241.05,13.59559401]
[1758381899343,31.2,241.13,241.07,2.25272697]
[1758381899672,2.25272697,241.11,241.06,0.66]
[1758381900276,2.96272697,241.12,241.06,0.66]
[1758381900880,4.14748455,241.11,241.06,0.66]
[1758381901167,4.14748455,241.11,241.07,0.66]
[1758381901665,4.85748455,241.11,241.05,2.91272697]
[1758381901964,4.85748455,241.11,241.05,0.66]
[1758381903462,4.14748455,241.11,241.05,2.91272697]
[1758381903666,4.14748455,241.11,241.06,2.25272697]
[1758381903965,4.14731254,241.12,241.07,0.69]
[1758381904162,4.84731254,241.12,241.07,0.69]
[1758381910863,2.25272697,241.11,241.05,32.68]
[1758381911072,0.7,241.1,241.05,32.68]
[1758381911374,14.51559389,241.12,241.06,0.69]
[1758381911676,33.45272697,241.09,241.02,0.69]
[1758381911971,0.7,241.08,241.02,30.39]
[1758381912177,0.7,241.08,241.02,32.64272697]
[1758381912671,4.14817272,241.07,241.03,2.25272697]
[1758381912879,4.14817272,241.07,241.03,2.94272697]
[1758381913283,4.14817272,241.07,241.03,0.69]
[1758381913785,0.7,241.06,241.01,1e-08]
[1758381914082,2.95272697,241.06,241.01,1e-08]
[1758381914266,0.7,241.05,241.01,1e-08]
[1758381914867,0.7,241.04,241.01,1e-08]
[1758381915461,4.84886113,241.03,241.01,1e-08]
[1758381916257,4.14886113,241.03,241.01,1e-08]
[1758381916473,1.44153284,241.02,241.01,1e-08]
[1758381916663,4.14886113,241.03,241.01,1e-08]
[1758381917077,5.59039397,241.03,241.01,1e-08]
[1758381918869,5.59056611,241.02,241.01,1e-08]
[1758381919074,4.14903327,241.02,241.01,1e-08]
[1758381919273,5.59056611,241.02,241.01,1e-08]
[1758381922161,6.29056611,241.02,241.01,1e-08]
[1758381922860,2.79362467,241.04,241.01,0.69000001]
[1758381923184,1.44153284,241.07,241.01,0.69000001]
[1758381923483,4.14817272,241.07,241.01,2.13153285]
[1758381923683,4.14817272,241.07,241.02,0.69]
[1758381924270,1.44153284,241.07,241.02,0.69]
[1758381924884,1.44153284,241.08,241.02,0.69]
[1758381925058,5.58936145,241.09,241.02,6.2805495]
[1758381925256,5.58936145,241.09,241.03,2.13153284]
[1758381925462,5.58936145,241.09,241.04,33.37]
[1758381925759,5.58936145,241.09,241.04,32.68]
[1758381925960,5.58936145,241.09,241.04,33.38]
[1758381926194,5.58936145,241.09,241.05,0.7]
[1758381928086,4.14782861,241.09,241.05,0.7]
[1758381928581,1.44153284,241.09,241.05,0.7]
[1758381929165,1.44153284,241.09,241.04,32.68]
[1758381929166,0.66,241.09,241.04,32.68]
[1758381929366,1.44153284,241.09,241.05,0.7]
[1758381929983,1.44153284,241.09,241.06,32.68]
[1758381930304,6.94221319,241.1,241.06,32.68]
[1758381930600,8.38374603,241.1,241.06,33.38]
[1758381930907,9.04374603,241.1,241.06,32.68]
[1758381931095,6.24918941,241.1,241.06,32.68]
[1758381931275,4.14800066,241.08,241.06,32.68]
[1758381932091,0.66,241.2,241.08,13.59559401]
[1758381932295,4.14559323,241.22,241.12,13.59559401]
[1758381932593,1.44153284,241.2,241.13,34.82153284]
[1758381932888,1.44153284,241.19,241.14,0.7]
[1758381933089,1.44153284,241.18,241.12,13.59559401]
[1758381933392,1.44153284,241.17,241.15,32.68]
[1758381933981,1.44153284,241.2,241.16,0.7]
[1758381934164,1.44153284,241.2,241.15,32.68]
[1758381934364,1.44153284,241.2,241.16,0.7]
[1758381934583,2.10153284,241.2,241.15,32.68]
[1758381934868,2.10153284,241.19,241.14,0.7]
[1758381935087,1.44153284,241.18,241.15,32.68]
[1758381935285,4.14630312,241.18,241.15,32.68]
[1758381935490,1.44153284,241.2,241.16,32.66]
[1758381935692,2.10153284,241.2,241.16,32.66]
[1758381935893,5.58746982,241.2,241.16,32.66]
[1758381936099,0.76,241.28,241.17,2.14153284]
[1758381936392,0.76,241.28,241.18,2.14153284]
[1758381936393,1.44153284,241.25,241.18,2.14153284]
[1758381936575,5.58626695,241.27,241.19,0.7]
[1758381936995,5.58626695,241.27,241.2,1.44153284]
[1758381937196,5.58626695,241.27,241.21,33.36]
[1758381937376,5.58626695,241.27,241.22,0.7]
[1758381937571,5.58626695,241.27,241.23,0.7]
[1758381937772,4.14473411,241.27,241.23,0.7]
[1758381938079,4.24457509,241.28,241.24,0.7]
[1758381938386,4.24457509,241.28,241.25,0.7]
[1758381940001,4.90457509,241.28,241.22,2.14153284]
[1758381940692,4.24457509,241.28,241.22,14.8893544]
[1758381940898,4.24457509,241.28,241.22,13.44782156]
[1758381943097,4.24457509,241.28,241.23,0.7]
[1758381943310,4.24457509,241.28,241.24,33.36]
[1758381945086,0.1,241.28,241.25,0.7]
[1758381945605,4.24461163,241.28,241.25,0.7]
[1758381945810,4.24461163,241.28,241.26,32.66]
[1758381946402,4.24461163,241.28,241.23,0.7]
[1758381946607,4.90461163,241.28,241.24,32.66]
[1758381948410,4.24461163,241.28,241.24,33.36]
[1758381949508,4.24461163,241.28,241.24,0.7]
[1758381949711,4.24461163,241.28,241.25,32.66]
[1758381951720,4.14490591,241.26,241.22,13.44782156]
[1758381951921,4.14490591,241.26,241.23,33.34]
[1758381952892,0.1,241.28,241.23,33.34]
[1758381952893,4.14473411,241.27,241.23,32.64]
[1758381953121,4.14473411,241.27,241.24,0.7]
[1758381955223,4.14473411,241.27,241.25,32.64]
[1758381956214,4.14473411,241.27,241.26,32.64]
[1758381959110,16.62810223,241.27,241.26,32.64]
[1758381959306,15.18656939,241.27,241.22,12.64795871]
[1758381959507,1.44153284,241.26,241.23,32.64]
[1758381959723,2.12153284,241.26,241.18,0.72]
[1758381959918,2.12153284,241.26,241.19,32.64]
[1758381960234,2.12153284,241.25,241.19,33.36]
[1758381960429,14.50656939,241.27,241.21,1.44153284]
[1758381960809,14.50656939,241.27,241.22,0.72]
[1758381961010,14.50656939,241.27,241.23,32.64]
[1758381961224,14.50656939,241.27,241.23,33.36]
[1758381961530,15.18656939,241.27,241.23,32.64]
[1758381961731,15.18656939,241.27,241.23,33.36]
[1758381961732,4.14507772,241.25,241.23,33.36]
[1758381961930,4.14507772,241.25,241.24,0.72]
[1758381963232,4.14490829,241.26,241.24,0.72]
[1758381963815,4.14473411,241.27,241.24,0.72]
[1758381964011,5.58626695,241.27,241.24,0.72]
[1758381964511,1.44153284,241.26,241.25,32.64]
[1758381964712,2.14153284,241.26,241.19,0.7]
[1758381965013,1.44153284,241.23,241.2,32.64]
[1758381965214,1.44153284,241.24,241.21,0.7]
[1758381965836,4.14542138,241.23,241.21,0.7]
[1758381966731,4.14542138,241.23,241.18,1.44153284]
[1758381966937,1.44153284,241.25,241.22,0.7]
[1758381967130,1.44153284,241.25,241.23,32.64]
[1758381967718,1.44153284,241.26,241.24,0.7]
[1758381967917,4.14507772,241.25,241.24,0.7]
[1758381968319,4.14507772,241.25,241.23,32.64]
[1758381968836,4.84507772,241.25,241.23,32.64]
[1758381969141,4.14507772,241.25,241.23,32.64]
[1758381969534,4.14507772,241.25,241.2,0.7]
[1758381969734,4.14507772,241.25,241.21,33.34]
[1758381970031,4.14507772,241.25,241.22,0.7]
[1758381970363,4.14487829,241.27,241.23,0.7]
[1758381970518,0.1,241.28,241.23,0.7]
[1758381970717,4.2446312,241.28,241.21,38.22727721]
[1758381970939,4.2446312,241.28,241.24,0.7]
[1758381971140,4.2446312,241.28,241.25,33.34]
[1758381973664,5.68616404,241.28,241.26,32.64]
[1758381975735,6.38616404,241.28,241.26,32.64]
[1758381975916,2.14153284,241.27,241.26,32.62]
[1758381976118,4.23193186,241.27,241.26,32.62]
[1758381976325,4.93193186,241.27,241.21,0.7]
[1758381976524,1.44153284,241.26,241.22,32.62]
[1758381976739,1.44153284,241.26,241.23,33.32]
[1758381977775,4.14490591,241.26,241.23,33.32]
[1758381977949,14.50717068,241.26,241.19,2.24805252]
[1758381978152,2.79465651,241.25,241.21,2.94805252]
[1758381978341,4.14490591,241.26,241.22,0.7]
[1758381979250,4.24467555,241.28,241.23,32.62]
[1758381979447,4.24467555,241.28,241.24,0.7]
[1758381979953,0.1,241.28,241.24,0.7]
[1758381980550,0.1,241.28,241.26,2.24805252]
[1758381980748,0.1,241.28,241.27,49.16364653]
[1758381980964,0.1,241.32,241.28,13.59559401]
[1758381981146,0.1,241.32,241.31,15.84364653]
[1758381981347,0.1,241.32,241.31,46.21559401]
[1758381981541,0.1,241.32,241.31,49.16364653]
[1758381981738,0.1,241.32,241.31,53.3076936]
[1758381982142,0.1,241.32,241.31,51.05964108]
[1758381982369,0.1,241.32,241.31,53.3076936]
[1758381984375,0.1,241.32,241.31,51.05964108]
[1758381984570,0.1,241.32,241.31,53.3076936]
[1758381986566,0.1,241.39,241.31,64.08221599]
[1758381986777,0.1,241.39,241.37,2.24805252]
[1758381987072,0.1,241.39,241.38,34.86805252]
[1758381987260,0.1,241.39,241.38,35.53805252]
[1758381988161,0.1,241.39,241.38,33.29]
[1758381988753,0.1,241.39,241.38,0.67]
[1758381988961,0.1,241.39,241.38,33.27]
[1758381989154,0.1,241.39,241.38,35.51805252]
[1758381989570,0.1,241.39,241.38,49.11364653]
[1758381990875,0.1,241.4,241.39,13.59559401]
[1758381991070,0.1,241.4,241.39,16.51364653]
[1758381991268,4.24103042,241.49,241.39,14.26559401]
[1758381991468,4.24103042,241.49,241.45,13.59559401]
[1758381991670,0.1,241.49,241.46,33.27]
[1758381991871,0.1,241.49,241.45,15.84364653]
[1758381992201,0.1,241.49,241.46,0.67]
[1758381992368,0.1,241.49,241.47,0.67]
[1758381992568,4.24096866,241.49,241.47,12.87515343]
[1758381992801,4.24096866,241.49,241.47,0.67]
[1758381993201,6.48902118,241.49,241.43,0.67]
[1758381993505,6.48902118,241.49,241.44,32.6]
[1758381993990,4.91096866,241.49,241.44,33.27]
[1758381994790,4.24096866,241.49,241.45,0.67]
[1758381994991,4.24096866,241.49,241.46,0.67]
[1758381995198,4.24096866,241.49,241.47,32.6]
[1758381995374,0.1,241.49,241.48,0.67]